fUST/lending_fUST_20240422
["ID","MTS","AMOUNT","RATE_DAILY","PERIOD"]
[323174694,1713771053344,-500.0,0.00023561,2]
[323174695,1713771053354,-532.06,0.00023561,2]
[323174696,1713771053364,-528.59,0.00023561,2]
[323174697,1713771053374,-510.11,0.00023561,2]
[323174698,1713771053385,-563.65,0.00023561,2]
[323174699,1713771053394,-1715.53,0.00023561,2]
[323174700,1713771053404,-500.0,0.00023561,2]
[323174701,1713771053414,-500.0,0.00023561,2]
[323174702,1713771053423,-838.09,0.00023561,2]
[323174703,1713771053433,-500.0,0.00023561,2]
[323174704,1713771053443,-500.0,0.00023561,2]
[323174705,1713771053454,-1211.3,0.00023561,2]
[323174706,1713771053466,-500.0,0.00023561,2]
[323174707,1713771053476,-500.0,0.00023561,2]
[323174708,1713771053485,-1791.31,0.00023561,2]
[323174709,1713771053495,-765.95,0.00023561,2]
[323174710,1713771053504,-672.43,0.00023561,2]
[323174711,1713771053613,-500.0,0.00023561,2]
[323174712,1713771053623,-500.0,0.00023561,2]
[323174713,1713771053631,-703.56,0.00023561,2]
[323174714,1713771053640,-810.54,0.00023561,2]
[323174715,1713771053649,-500.0,0.00023561,2]
[323174716,1713771053658,-500.0,0.00023561,2]
[323174717,1713771053668,-500.0,0.00023561,2]
[323174718,1713771053677,-1339.24,0.00023561,2]
[323174719,1713771053686,-3162.37,0.00023561,2]
[323174720,1713771053696,-500.0,0.00023561,2]
[323174721,1713771053705,-1126.55,0.00023561,2]
[323174722,1713771053714,-940.4,0.00023561,2]
[323174723,1713771053723,-584.61,0.00023561,2]
[323174724,1713771053733,-500.0,0.00023561,2]
[323174725,1713771053741,-479.68149265,0.00023561,2]
[323174726,1713771053750,-500.0,0.00023561,2]
[323174727,1713771053759,-2107.45,0.00023561,2]
[323174728,1713771053770,-1238.19,0.00023561,2]
[323174729,1713771053779,-500.0,0.00023561,2]
[323174730,1713771053791,-631.52,0.00023561,2]
[323174731,1713771053799,-517.54824098,0.00023561,2]
[323174732,1713771053808,-500.0,0.00023561,2]
[323174733,1713771053817,-694.59,0.00023561,2]
[323174734,1713771053826,-500.0,0.00023561,2]
[323174735,1713771053835,-500.0,0.00023561,2]
[323174736,1713771053843,-1436.04,0.00023561,2]
[323174737,1713771053854,-532.95,0.00023561,2]
[323174738,1713771053863,-500.0,0.00023561,2]
[323174739,1713771053872,-500.0,0.00023561,2]
[323174740,1713771053881,-500.0,0.00023561,2]
[323174741,1713771053889,-651.21,0.00023561,2]
[323174742,1713771053899,-500.0,0.00023561,2]
[323174743,1713771053907,-500.0,0.00023561,2]
[323174744,1713771053917,-500.0,0.00023561,2]
[323174745,1713771053925,-983.71,0.00023561,2]
[323174746,1713771053935,-500.0,0.00023561,2]
[323174747,1713771053944,-748.79,0.00023561,2]
[323174748,1713771053953,-264.88888302,0.00023561,2]
[323174749,1713771053962,-773.15,0.00023561,2]
[323174750,1713771053971,-1482.76,0.00023561,2]
[323174751,1713771053980,-500.0,0.00023561,2]
[323174752,1713771053990,-713.22,0.00023561,2]
[323174753,1713771053999,-500.0,0.00023561,2]
[323174754,1713771054008,-500.0,0.00023561,2]
[323174755,1713771054017,-520.76,0.00023561,2]
[323174756,1713771054026,-500.0,0.00023561,2]
[323174757,1713771054037,-500.0,0.00023561,2]
[323174758,1713771054046,-845.63,0.00023561,2]
[323174759,1713771054055,-500.0,0.00023561,2]
[323174760,1713771054064,-500.0,0.00023561,2]
[323174761,1713771054073,-500.0,0.00023561,2]
[323174762,1713771054082,-500.0,0.00023561,2]
[323174763,1713771054091,-546.12,0.00023561,2]
[323174764,1713771054100,-500.0,0.00023561,2]
[323174765,1713771054110,-657.75,0.00023561,2]
[323174766,1713771054119,-1593.07,0.00023561,2]
[323174767,1713771054129,-540.67,0.00023561,2]
[323174768,1713771054138,-788.31,0.00023561,2]
[323174769,1713771054148,-1886.84,0.00023561,2]
[323174770,1713771054157,-500.0,0.00023561,2]
[323174771,1713771054166,-500.0,0.00023561,2]
[323174772,1713771054176,-1320.93,0.00023561,2]
[323174773,1713771054185,-500.0,0.00023561,2]
[323174774,1713771054194,-1499.42,0.00023561,2]
[323174775,1713771054204,-429.41609693,0.00023561,2]
[323174776,1713771054213,-551.6,0.00023561,2]
[323174777,1713771054222,-512.96,0.00023561,2]
[323174778,1713771054231,-500.0,0.00023561,2]
[323174779,1713771054240,-2279.58,0.00023561,2]
[323174780,1713771054249,-500.0,0.00023561,2]
[323174781,1713771054259,-2400.32,0.00023561,2]
[323174782,1713771054268,-500.0,0.00023561,2]
[323174783,1713771054277,-1042.84,0.00023561,2]
[323174784,1713771054287,-987.76,0.00023561,2]
[323174785,1713771054296,-500.0,0.00023561,2]
[323174786,1713771054305,-500.0,0.00023561,2]
[323174787,1713771054315,-891.53,0.00023561,2]
[323174788,1713771054324,-662.27,0.00023561,2]
[323174789,1713771054334,-500.0,0.00023561,2]
[323174790,1713771054343,-544.28,0.00023561,2]
[323174791,1713771054352,-1893.47,0.00023561,2]
[323174792,1713771054361,-1209.09,0.00023561,2]
[323174793,1713771054370,-1729.68,0.00023561,2]
[323174794,1713771054380,-520.04,0.00023561,2]
[323174795,1713771054389,-530.72,0.00023561,2]
[323174796,1713771054399,-5968.09,0.00023561,2]
[323174797,1713771054408,-500.0,0.00023561,2]
[323174798,1713771054418,-814.84,0.00023561,2]
[323174799,1713771054427,-4318.26,0.00023561,2]
[323174800,1713771054437,-855.27,0.00023561,2]
[323174801,1713771054446,-500.0,0.00023561,2]
[323174802,1713771054457,-1637.34,0.00023561,2]
[323174803,1713771054467,-8414.55,0.00023561,2]
[323174804,1713771054476,-500.0,0.00023561,2]
[323174805,1713771054485,-511.45,0.00023561,2]
[323174806,1713771054496,-5942.22,0.00023561,2]
[323174807,1713771054505,-500.0,0.00023561,2]
[323174808,1713771054514,-864.39,0.00023561,2]
[323174809,1713771054524,-1481.71,0.00023561,2]
[323174810,1713771054535,-500.0,0.00023561,2]
[323174811,1713771054544,-599.44,0.00023561,2]
[323174812,1713771054552,-929.38,0.00023561,2]
[323174813,1713771054561,-500.0,0.00023561,2]
[323174814,1713771054570,-824.57,0.00023561,2]
[323174815,1713771054579,-500.0,0.00023561,2]
[323174816,1713771054588,-683.82,0.00023561,2]
[323174817,1713771054597,-6331.87,0.00023561,2]
[323174818,1713771054606,-740.12,0.00023561,2]
[323174819,1713771054615,-1229.03,0.00023561,2]
[323174820,1713771054624,-500.0,0.00023561,2]
[323174821,1713771054633,-500.0,0.00023561,2]
[323174822,1713771054642,-1773.05,0.00023561,2]
[323174823,1713771054651,-500.0,0.00023561,2]
[323174824,1713771054660,-500.0,0.00023561,2]
[323174825,1713771054669,-9168.41,0.00023561,2]
[323174826,1713771054678,-500.0,0.00023561,2]
[323174827,1713771054687,-500.0,0.00023561,2]
[323174828,1713771054696,-500.0,0.00023561,2]
[323174829,1713771054705,-603.54,0.00023561,2]
[323174830,1713771054714,-545.2,0.00023561,2]
[323174831,1713771054724,-637.24,0.00023561,2]
[323174832,1713771054733,-500.0,0.00023561,2]
[323174833,1713771054742,-910.54,0.00023561,2]
[323174834,1713771054751,-671.87,0.00023561,2]
[323174835,1713771054760,-1223.34,0.00023561,2]
[323174836,1713771054770,-5648.11,0.00023561,2]
[323174837,1713771054779,-816.69,0.00023561,2]
[323174838,1713771054791,-500.0,0.00023561,2]
[323174839,1713771054801,-1094.87,0.00023561,2]
[323174840,1713771054810,-500.0,0.00023561,2]
[323174841,1713771054818,-4561.56,0.00023561,2]
[323174842,1713771054828,-500.0,0.00023561,2]
[323174843,1713771054837,-500.0,0.00023561,2]
[323174844,1713771054846,-500.0,0.00023561,2]
[323174845,1713771054854,-500.0,0.00023561,2]
[323174846,1713771054864,-521.6,0.00023561,2]
[323174847,1713771054873,-748.06,0.00023561,2]
[323174848,1713771054882,-660.25,0.00023561,2]
[323174849,1713771054891,-1000.0,0.000238,6]
[323174850,1713771054899,-676.0,0.000238,2]
[323174851,1713771054908,-909.83,0.00023835,2]
[323174852,1713771054918,-500.0,0.00023835,2]
[323174853,1713771054927,-649.35,0.00023835,2]
[323174854,1713771054936,-781.95,0.00023835,2]
[323174855,1713771054945,-500.0,0.00023835,2]
[323174856,1713771054954,-618.79,0.00023835,2]
[323174857,1713771054963,-500.0,0.00023835,2]
[323174858,1713771054972,-500.0,0.00023835,2]
[323174859,1713771054981,-1676.89,0.00023835,2]
[323174860,1713771054990,-500.0,0.00023835,2]
[323174861,1713771054999,-500.0,0.00023835,2]
[323174862,1713771055008,-1796.53,0.00023835,2]
[323174863,1713771055017,-500.0,0.00023835,2]
[323174864,1713771055026,-500.0,0.00023835,2]
[323174865,1713771055036,-500.0,0.00023835,2]
[323174866,1713771055046,-502.44595839,0.00023835,2]
[323174867,1713771055055,-532.06,0.00023835,2]
[323174868,1713771055064,-528.59,0.00023835,2]
[323174869,1713771055073,-510.11,0.00023835,2]
[323174870,1713771055082,-563.65,0.00023835,2]
[323174871,1713771055091,-1715.53,0.00023835,2]
[323174872,1713771055100,-500.0,0.00023835,2]
[323174873,1713771055109,-500.0,0.00023835,2]
[323174874,1713771055118,-838.09,0.00023835,2]
[323174875,1713771055127,-500.0,0.00023835,2]
[323174876,1713771055136,-500.0,0.00023835,2]
[323174877,1713771055145,-1211.3,0.00023835,2]
[323174878,1713771055154,-500.0,0.00023835,2]
[323174879,1713771055163,-500.0,0.00023835,2]
[323174880,1713771055172,-1791.31,0.00023835,2]
[323174881,1713771055182,-765.95,0.00023835,2]
[323174882,1713771055191,-672.43,0.00023835,2]
[323174883,1713771055200,-500.0,0.00023835,2]
[323174884,1713771055209,-500.0,0.00023835,2]
[323174885,1713771055219,-703.56,0.00023835,2]
[323174886,1713771055229,-810.54,0.00023835,2]
[323174887,1713771055238,-500.0,0.00023835,2]
[323174888,1713771055247,-500.0,0.00023835,2]
[323174889,1713771055257,-532.75819886,0.00023835,2]
[323174890,1713771055266,-1339.24,0.00023835,2]
[323174891,1713771055276,-3162.37,0.00023835,2]
[323174892,1713771055287,-500.0,0.00023835,2]
[323174893,1713771055296,-1126.55,0.00023835,2]
[323174894,1713771055306,-940.4,0.00023835,2]
[323174895,1713771055316,-584.61,0.00023835,2]
[323174896,1713771055325,-500.0,0.00023835,2]
[323174897,1713771055334,-500.0,0.00023835,2]
[323174898,1713771055344,-2107.45,0.00023835,2]
[323174899,1713771055353,-1238.19,0.00023835,2]
[323174900,1713771055362,-500.0,0.00023835,2]
[323174901,1713771055371,-631.52,0.00023835,2]
[323174902,1713771055381,-500.0,0.00023835,2]
[323174903,1713771055390,-694.59,0.00023835,2]
[323174904,1713771055399,-500.0,0.00023835,2]
[323174905,1713771055409,-500.0,0.00023835,2]
[323174906,1713771055418,-1436.04,0.00023835,2]
[323174907,1713771055427,-532.95,0.00023835,2]
[323174908,1713771055438,-500.0,0.00023835,2]
[323174909,1713771055455,-500.0,0.00023835,2]
[323174910,1713771055472,-500.0,0.00023835,2]
[323174911,1713771055481,-651.21,0.00023835,2]
[323174912,1713771055491,-500.0,0.00023835,2]
[323174913,1713771055503,-500.0,0.00023835,2]
[323174914,1713771055513,-500.0,0.00023835,2]
[323174915,1713771055523,-983.71,0.00023835,2]
[323174916,1713771055535,-500.0,0.00023835,2]
[323174917,1713771055548,-748.79,0.00023835,2]
[323174918,1713771055557,-773.15,0.00023835,2]
[323174919,1713771055567,-1482.76,0.00023835,2]
[323174920,1713771055577,-500.0,0.00023835,2]
[323174921,1713771055586,-713.22,0.00023835,2]
[323174922,1713771055596,-500.0,0.00023835,2]
[323174923,1713771055605,-500.0,0.00023835,2]
[323174924,1713771055614,-520.76,0.00023835,2]
[323174925,1713771055624,-500.0,0.00023835,2]
[323174926,1713771055634,-169.75635674,0.00023835,2]
[323174927,1713771055739,-845.63,0.00023835,2]
[323174928,1713771055750,-500.0,0.00023835,2]
[323174929,1713771055759,-317.65105873,0.00023835,2]
[323174930,1713771055771,-500.0,0.00023835,2]
[323174931,1713771055781,-500.0,0.00023835,2]
[323174932,1713771055791,-546.12,0.00023835,2]
[323174933,1713771055801,-500.0,0.00023835,2]
[323174934,1713771055811,-657.75,0.00023835,2]
[323174935,1713771055821,-1593.07,0.00023835,2]
[323174936,1713771055831,-540.67,0.00023835,2]
[323174937,1713771055842,-788.31,0.00023835,2]
[323174938,1713771055851,-1886.84,0.00023835,2]
[323174939,1713771055862,-500.0,0.00023835,2]
[323174940,1713771055871,-500.0,0.00023835,2]
[323174941,1713771055880,-1320.93,0.00023835,2]
[323174942,1713771055889,-500.0,0.00023835,2]
[323174943,1713771055899,-1499.42,0.00023835,2]
[323174944,1713771055909,-551.6,0.00023835,2]
[323174945,1713771055918,-512.96,0.00023835,2]
[323174946,1713771055928,-500.0,0.00023835,2]
[323174947,1713771055938,-2279.58,0.00023835,2]
[323174948,1713771055949,-500.0,0.00023835,2]
[323174949,1713771055959,-2400.32,0.00023835,2]
[323174950,1713771055969,-500.0,0.00023835,2]
[323174951,1713771055978,-1042.84,0.00023835,2]
[323174952,1713771055987,-987.76,0.00023835,2]
[323174953,1713771055996,-412.68824244,0.00023835,2]
[323174954,1713771056006,-500.0,0.00023835,2]
[323174955,1713771056015,-891.53,0.00023835,2]
[323174956,1713771056025,-662.27,0.00023835,2]
[323174957,1713771056034,-500.0,0.00023835,2]
[323174958,1713771056043,-544.28,0.00023835,2]
[323174959,1713771056052,-1893.47,0.00023835,2]
[323174960,1713771056061,-1209.09,0.00023835,2]
[323174961,1713771056070,-1729.68,0.00023835,2]
[323174962,1713771056079,-520.04,0.00023835,2]
[323174963,1713771056088,-530.72,0.00023835,2]
[323174964,1713771056097,-5968.09,0.00023835,2]
[323174965,1713771056106,-500.0,0.00023835,2]
[323174966,1713771056115,-814.84,0.00023835,2]
[323174967,1713771056124,-4318.26,0.00023835,2]
[323174968,1713771056132,-855.27,0.00023835,2]
[323174969,1713771056141,-500.0,0.00023835,2]
[323174970,1713771056150,-1637.34,0.00023835,2]
[323174971,1713771056159,-8414.55,0.00023835,2]
[323174972,1713771056168,-500.0,0.00023835,2]
[323174973,1713771056177,-511.45,0.00023835,2]
[323174974,1713771056186,-5942.22,0.00023835,2]
[323174975,1713771056195,-500.0,0.00023835,2]
[323174976,1713771056204,-864.39,0.00023835,2]
[323174977,1713771056213,-1481.71,0.00023835,2]
[323174978,1713771056221,-598.90667518,0.00023835,2]
[323174979,1713771056230,-599.44,0.00023835,2]
[323174980,1713771056239,-929.38,0.00023835,2]
[323174981,1713771056248,-500.0,0.00023835,2]
[323174982,1713771056257,-824.57,0.00023835,2]
[323174983,1713771056265,-500.0,0.00023835,2]
[323174984,1713771056274,-683.82,0.00023835,2]
[323174985,1713771056283,-6331.87,0.00023835,2]
[323174986,1713771056291,-740.12,0.00023835,2]
[323174987,1713771056300,-1229.03,0.00023835,2]
[323174988,1713771056309,-500.0,0.00023835,2]
[323174989,1713771056318,-500.0,0.00023835,2]
[323174990,1713771056327,-1773.05,0.00023835,2]
[323174991,1713771056335,-500.0,0.00023835,2]
[323174992,1713771056344,-500.0,0.00023835,2]
[323174993,1713771056354,-9168.41,0.00023835,2]
[323174994,1713771056363,-500.0,0.00023835,2]
[323174995,1713771056372,-500.0,0.00023835,2]
[323174996,1713771056381,-500.0,0.00023835,2]
[323174998,1713771056390,-603.54,0.00023835,2]
[323174999,1713771056400,-545.2,0.00023835,2]
[323175000,1713771056409,-637.24,0.00023835,2]
[323175001,1713771056417,-500.0,0.00023835,2]
[323175002,1713771056426,-910.54,0.00023835,2]
[323175003,1713771056435,-671.87,0.00023835,2]
[323175004,1713771056445,-1223.34,0.00023835,2]
[323175005,1713771056457,-5648.11,0.00023835,2]
[323175006,1713771056466,-816.69,0.00023835,2]
[323175007,1713771056475,-500.0,0.00023835,2]
[323175008,1713771056484,-1094.87,0.00023835,2]
[323175009,1713771056493,-237.49703828,0.00023835,2]
[323175010,1713771056502,-4561.56,0.00023835,2]
[323175011,1713771056511,-500.0,0.00023835,2]
[323175012,1713771056520,-500.0,0.00023835,2]
[323175013,1713771056530,-500.0,0.00023835,2]
[323175014,1713771056540,-500.0,0.00023835,2]
[323175015,1713771056549,-521.6,0.00023835,2]
[323175016,1713771056559,-748.06,0.00023835,2]
[323175017,1713771056567,-660.25,0.00023835,2]
[323175018,1713771056576,-150.83408251,0.00023953,2]
[323175019,1713771056585,-1000.0,0.00024,2]
[323175020,1713771056594,-22170.11534831,0.00024,2]
[323175021,1713771056603,-909.83,0.00024109,2]
[323175022,1713771056612,-500.0,0.00024109,2]
[323175023,1713771056621,-649.35,0.00024109,2]
[323175024,1713771056630,-781.95,0.00024109,2]
[323175025,1713771056638,-500.0,0.00024109,2]
[323175026,1713771056648,-618.79,0.00024109,2]
[323175027,1713771056657,-500.0,0.00024109,2]
[323175028,1713771056666,-500.0,0.00024109,2]
[323175029,1713771056675,-1676.89,0.00024109,2]
[323175030,1713771056686,-500.0,0.00024109,2]
[323175031,1713771056695,-474.95041374,0.00024109,2]
[323175032,1713771056705,-1796.53,0.00024109,2]
[323175033,1713771056714,-500.0,0.00024109,2]
[323175034,1713771056723,-500.0,0.00024109,2]
[323175035,1713771056733,-500.0,0.00024109,2]
[323175036,1713771056743,-532.06,0.00024109,2]
[323175037,1713771056752,-528.59,0.00024109,2]
[323175038,1713771056761,-510.11,0.00024109,2]
[323175039,1713771056771,-563.65,0.00024109,2]
[323175040,1713771056780,-1715.53,0.00024109,2]
[323175041,1713771056790,-500.0,0.00024109,2]
[323175042,1713771056800,-500.0,0.00024109,2]
[323175043,1713771056808,-838.09,0.00024109,2]
[323175044,1713771056818,-500.0,0.00024109,2]
[323175045,1713771056827,-500.0,0.00024109,2]
[323175046,1713771056837,-1211.3,0.00024109,2]
[323175047,1713771056846,-500.0,0.00024109,2]
[323175048,1713771056856,-500.0,0.00024109,2]
[323175049,1713771056865,-1791.31,0.00024109,2]
[323175050,1713771056874,-765.95,0.00024109,2]
[323175051,1713771056883,-672.43,0.00024109,2]
[323175052,1713771056893,-500.0,0.00024109,2]
[323175053,1713771056902,-500.0,0.00024109,2]
[323175054,1713771056911,-703.56,0.00024109,2]
[323175055,1713771056919,-810.54,0.00024109,2]
[323175056,1713771056928,-500.0,0.00024109,2]
[323175057,1713771056938,-500.0,0.00024109,2]
[323175058,1713771056947,-1339.24,0.00024109,2]
[323175059,1713771056956,-3162.37,0.00024109,2]
[323175060,1713771056965,-500.0,0.00024109,2]
[323175061,1713771056974,-1126.55,0.00024109,2]
[323175062,1713771056984,-940.4,0.00024109,2]
[323175063,1713771056994,-584.61,0.00024109,2]
[323175064,1713771057003,-367.99905648,0.00024109,2]
[323175065,1713771057012,-500.0,0.00024109,2]
[323175066,1713771057022,-2107.45,0.00024109,2]
[323175067,1713771057031,-1238.19,0.00024109,2]
[323175068,1713771057045,-500.0,0.00024109,2]
[323175069,1713771057054,-631.52,0.00024109,2]
[323175070,1713771057064,-500.0,0.00024109,2]
[323175071,1713771057073,-694.59,0.00024109,2]
[323175072,1713771057081,-500.0,0.00024109,2]
[323175073,1713771057091,-500.0,0.00024109,2]
[323175074,1713771057100,-1436.04,0.00024109,2]
[323175075,1713771057109,-532.95,0.00024109,2]
[323175076,1713771057118,-500.0,0.00024109,2]
[323175077,1713771057128,-500.0,0.00024109,2]
[323175078,1713771057137,-500.0,0.00024109,2]
[323175079,1713771057146,-651.21,0.00024109,2]
[323175080,1713771057156,-500.0,0.00024109,2]
[323175081,1713771057165,-500.0,0.00024109,2]
[323175082,1713771057174,-500.0,0.00024109,2]
[323175083,1713771057183,-983.71,0.00024109,2]
[323175084,1713771057192,-500.0,0.00024109,2]
[323175085,1713771057202,-748.79,0.00024109,2]
[323175086,1713771057210,-773.15,0.00024109,2]
[323175087,1713771057220,-1482.76,0.00024109,2]
[323175088,1713771057230,-500.0,0.00024109,2]
[323175089,1713771057239,-713.22,0.00024109,2]
[323175090,1713771057248,-500.0,0.00024109,2]
[323175091,1713771057257,-500.0,0.00024109,2]
[323175092,1713771057266,-520.76,0.00024109,2]
[323175093,1713771057275,-500.0,0.00024109,2]
[323175094,1713771057285,-845.63,0.00024109,2]
[323175095,1713771057299,-500.0,0.00024109,2]
[323175096,1713771057309,-500.0,0.00024109,2]
[323175097,1713771057318,-500.0,0.00024109,2]
[323175098,1713771057327,-546.12,0.00024109,2]
[323175099,1713771057336,-500.0,0.00024109,2]
[323175100,1713771057346,-657.75,0.00024109,2]
[323175101,1713771057355,-1593.07,0.00024109,2]
[323175102,1713771057365,-540.67,0.00024109,2]
[323175103,1713771057374,-788.31,0.00024109,2]
[323175104,1713771057383,-1886.84,0.00024109,2]
[323175105,1713771057392,-500.0,0.00024109,2]
[323175106,1713771057402,-604.40400931,0.00024109,2]
[323175107,1713771057411,-1320.93,0.00024109,2]
[323175108,1713771057420,-500.0,0.00024109,2]
[323175109,1713771057429,-1499.42,0.00024109,2]
[323175110,1713771057438,-551.6,0.00024109,2]
[323175111,1713771057448,-512.96,0.00024109,2]
[323175112,1713771057459,-500.0,0.00024109,2]
[323175113,1713771057468,-2279.58,0.00024109,2]
[323175114,1713771057478,-500.0,0.00024109,2]
[323175115,1713771057487,-2400.32,0.00024109,2]
[323175116,1713771057497,-1042.84,0.00024109,2]
[323175117,1713771057507,-987.76,0.00024109,2]
[323175118,1713771057516,-500.0,0.00024109,2]
[323175119,1713771057525,-891.53,0.00024109,2]
[323175120,1713771057537,-662.27,0.00024109,2]
[323175121,1713771057547,-500.0,0.00024109,2]
[323175122,1713771057556,-544.28,0.00024109,2]
[323175123,1713771057565,-1893.47,0.00024109,2]
[323175124,1713771057574,-1209.09,0.00024109,2]
[323175125,1713771057583,-1729.68,0.00024109,2]
[323175126,1713771057682,-520.04,0.00024109,2]
[323175127,1713771057691,-530.72,0.00024109,2]
[323175128,1713771057700,-5968.09,0.00024109,2]
[323175129,1713771057709,-500.0,0.00024109,2]
[323175130,1713771057719,-814.84,0.00024109,2]
[323175131,1713771057728,-4318.26,0.00024109,2]
[323175132,1713771057737,-855.27,0.00024109,2]
[323175133,1713771057746,-500.0,0.00024109,2]
[323175134,1713771057755,-1637.34,0.00024109,2]
[323175135,1713771057765,-8414.55,0.00024109,2]
[323175136,1713771057773,-500.0,0.00024109,2]
[323175137,1713771057782,-511.45,0.00024109,2]
[323175138,1713771057793,-5942.22,0.00024109,2]
[323175139,1713771057803,-244.29403611,0.00024109,2]
[323175140,1713771057812,-864.39,0.00024109,2]
[323175141,1713771057821,-1481.71,0.00024109,2]
[323175142,1713771057830,-599.44,0.00024109,2]
[323175143,1713771057839,-929.38,0.00024109,2]
[323175144,1713771057849,-500.0,0.00024109,2]
[323175145,1713771057859,-824.57,0.00024109,2]
[323175146,1713771057868,-683.82,0.00024109,2]
[323175147,1713771057878,-500.0,0.00024109,2]
[323175148,1713771057887,-6331.87,0.00024109,2]
[323175149,1713771057896,-740.12,0.00024109,2]
[323175150,1713771057905,-1229.03,0.00024109,2]
[323175151,1713771057914,-500.0,0.00024109,2]
[323175152,1713771057924,-500.0,0.00024109,2]
[323175153,1713771057933,-1773.05,0.00024109,2]
[323175154,1713771057943,-500.0,0.00024109,2]
[323175155,1713771057952,-500.0,0.00024109,2]
[323175156,1713771057963,-9168.41,0.00024109,2]
[323175157,1713771057972,-500.0,0.00024109,2]
[323175158,1713771057981,-500.0,0.00024109,2]
[323175159,1713771057990,-323.06846047,0.00024109,2]
[323175160,1713771057999,-603.54,0.00024109,2]
[323175161,1713771058008,-545.2,0.00024109,2]
[323175162,1713771058017,-637.24,0.00024109,2]
[323175163,1713771058027,-500.0,0.00024109,2]
[323175164,1713771058038,-910.54,0.00024109,2]
[323175165,1713771058047,-671.87,0.00024109,2]
[323175166,1713771058056,-1223.34,0.00024109,2]
[323175167,1713771058065,-5648.11,0.00024109,2]
[323175168,1713771058075,-816.69,0.00024109,2]
[323175169,1713771058084,-500.0,0.00024109,2]
[323175170,1713771058093,-1094.87,0.00024109,2]
[323175171,1713771058102,-4561.56,0.00024109,2]
[323175172,1713771058111,-500.0,0.00024109,2]
[323175173,1713771058120,-500.0,0.00024109,2]
[323175174,1713771058130,-500.0,0.00024109,2]
[323175175,1713771058139,-500.0,0.00024109,2]
[323175176,1713771058149,-521.6,0.00024109,2]
[323175177,1713771058158,-748.06,0.00024109,2]
[323175178,1713771058167,-660.25,0.00024109,2]
[323175179,1713771058176,-1000.0,0.000242,7]
[323175180,1713771058185,-909.83,0.00024383,2]
[323175181,1713771058195,-500.0,0.00024383,2]
[323175182,1713771058204,-649.35,0.00024383,2]
[323175183,1713771058213,-781.95,0.00024383,2]
[323175184,1713771058222,-500.0,0.00024383,2]
[323175185,1713771058232,-618.79,0.00024383,2]
[323175186,1713771058241,-500.0,0.00024383,2]
[323175187,1713771058250,-500.0,0.00024383,2]
[323175188,1713771058259,-1676.89,0.00024383,2]
[323175189,1713771058269,-500.0,0.00024383,2]
[323175190,1713771058278,-1796.53,0.00024383,2]
[323175191,1713771058290,-500.0,0.00024383,2]
[323175192,1713771058300,-500.0,0.00024383,2]
[323175193,1713771058309,-500.0,0.00024383,2]
[323175194,1713771058319,-532.06,0.00024383,2]